[Event "*** Titled Tuesday Blitz"]
[Site "Chess.com"]
[Date "2020.10.20"]
[Round "6"]
[White "Savagelittlemole"]
[Black "Snegokhod"]
[Result "1-0"]
[WhiteElo "2618"]
[BlackElo "2444"]
[TimeControl "180+1"]
[EndTime "11:07:26 PDT"]
[Termination "Savagelittlemole won by resignation"]

1. e4 {[%clk 0:03:00.9]} 1... c5 {[%clk 0:02:59]} 2. Ne2 {[%clk 0:03:00.5]} 2...
e5 {[%clk 0:02:57.8]} 3. g3 {[%clk 0:02:59.8]} 3... Nf6 {[%clk 0:02:57.7]} 4.
Bg2 {[%clk 0:03:00.4]} 4... Be7 {[%clk 0:02:58]} 5. O-O {[%clk 0:03:00.6]} 5...
O-O {[%clk 0:02:58.6]} 6. Nbc3 {[%clk 0:03:00.2]} 6... Nc6 {[%clk 0:02:58.3]} 7.
d3 {[%clk 0:02:59.5]} 7... d6 {[%clk 0:02:58.1]} 8. f4 {[%clk 0:02:59.4]} 8...
Nd4 {[%clk 0:02:50.8]} 9. h3 {[%clk 0:02:57.9]} 9... b6 {[%clk 0:02:46.6]} 10.
Kh2 {[%clk 0:02:57.6]} 10... Bb7 {[%clk 0:02:46.5]} 11. f5 {[%clk 0:02:58]}
11... d5 {[%clk 0:02:45.9]} 12. exd5 {[%clk 0:02:53]} 12... Nxd5 {[%clk
0:02:43.5]} 13. Ne4 {[%clk 0:02:48.8]} 13... Rb8 {[%clk 0:02:37]} 14. N2c3
{[%clk 0:02:47.3]} 14... Nb4 {[%clk 0:02:27.6]} 15. f6 {[%clk 0:02:45.9]} 15...
Bxf6 {[%clk 0:02:22.9]} 16. Nxf6+ {[%clk 0:02:45.9]} 16... gxf6 {[%clk
0:02:23.2]} 17. Bxb7 {[%clk 0:02:44.6]} 17... Rxb7 {[%clk 0:02:22.9]} 18. Bh6
{[%clk 0:02:43]} 18... Kh8 {[%clk 0:02:05.6]} 19. Bxf8 {[%clk 0:02:43]} 19...
Qxf8 {[%clk 0:02:05.2]} 20. Rxf6 {[%clk 0:02:39.1]} 20... Qg7 {[%clk 0:01:51.5]}
21. Rf2 {[%clk 0:02:33.4]} 21... f5 {[%clk 0:01:46.9]} 22. a3 {[%clk 0:02:33.4]}
22... f4 {[%clk 0:01:33.8]} 23. gxf4 {[%clk 0:02:08.6]} 23... exf4 {[%clk
0:01:33.6]} 24. Ne4 {[%clk 0:02:08.8]} 24... Nd5 {[%clk 0:01:31.8]} 25. Qh5
{[%clk 0:02:02.3]} 25... Ne3 {[%clk 0:01:15.6]} 26. Qe8+ {[%clk 0:02:01.8]}
26... Qg8 {[%clk 0:01:14.7]} 27. Qxg8+ {[%clk 0:02:02]} 27... Kxg8 {[%clk
0:01:14.7]} 28. Rg1+ {[%clk 0:02:02]} 28... Kf7 {[%clk 0:01:12.1]} 29. Rxf4+
{[%clk 0:02:02.1]} 29... Ke6 {[%clk 0:01:12]} 30. Rf6+ {[%clk 0:01:58.2]} 30...
Ke5 {[%clk 0:01:08.1]} 31. Rg5+ {[%clk 0:01:57.1]} 31... Ndf5 {[%clk 0:01:07.3]}
32. Rf8 {[%clk 0:01:46.1]} 32... c4 {[%clk 0:01:05.4]} 33. Ng3 {[%clk
0:01:42.6]} 33... Kf4 {[%clk 0:00:59.5]} 34. Rgxf5+ {[%clk 0:01:42.6]} 34...
Nxf5 {[%clk 0:00:58.8]} 35. Rxf5+ {[%clk 0:01:42.7]} 35... Ke3 {[%clk
0:00:58.9]} 36. dxc4 {[%clk 0:01:42.8]} 36... Kd2 {[%clk 0:00:58.5]} 37. Rf2+
{[%clk 0:01:42.5]} 37... Kc1 {[%clk 0:00:58.9]} 38. b4 {[%clk 0:01:40.6]} 38...
Kb2 {[%clk 0:00:59.2]} 39. Rf3 {[%clk 0:01:37.4]} 39... Kxc2 {[%clk 0:00:59]}
40. Nf5 {[%clk 0:01:36.8]} 40... Rc7 {[%clk 0:00:56.6]} 41. Nd4+ {[%clk
0:01:36.9]} 41... Kd2 {[%clk 0:00:53.4]} 42. c5 {[%clk 0:01:35]} 42... bxc5
{[%clk 0:00:43.2]} 43. bxc5 {[%clk 0:01:35.9]} 43... Rd7 {[%clk 0:00:43.7]} 44.
Nb3+ {[%clk 0:01:32.8]} 44... Kc2 {[%clk 0:00:42.2]} 45. c6 {[%clk 0:01:31.6]}
45... Rd6 {[%clk 0:00:33]} 46. c7 {[%clk 0:01:29.2]} 1-0

[Event "*** Titled Tuesday Blitz"]
[Site "Chess.com"]
[Date "2020.10.20"]
[Round "6"]
[White "Cocaino74"]
[Black "Ty3oB"]
[Result "0-1"]
[WhiteElo "2370"]
[BlackElo "2264"]
[TimeControl "180+1"]
[EndTime "11:07:29 PDT"]
[Termination "Ty3oB won by checkmate"]

1. e4 {[%clk 0:03:00.9]} 1... c5 {[%clk 0:02:59.5]} 2. Nf3 {[%clk 0:03:01.2]}
2... d6 {[%clk 0:02:59.3]} 3. Bb5+ {[%clk 0:03:01.3]} 3... Bd7 {[%clk
0:02:58.5]} 4. Bxd7+ {[%clk 0:03:01.8]} 4... Qxd7 {[%clk 0:02:59.4]} 5. c4
{[%clk 0:03:01.9]} 5... Nc6 {[%clk 0:02:57.6]} 6. Nc3 {[%clk 0:02:59.8]} 6... g6
{[%clk 0:02:57.4]} 7. d4 {[%clk 0:02:59.8]} 7... cxd4 {[%clk 0:02:57.1]} 8. Nxd4
{[%clk 0:03:00.7]} 8... Bg7 {[%clk 0:02:57.6]} 9. Be3 {[%clk 0:03:01.2]} 9...
Nf6 {[%clk 0:02:56.7]} 10. f3 {[%clk 0:03:01.4]} 10... O-O {[%clk 0:02:56.5]}
11. O-O {[%clk 0:03:02]} 11... Rac8 {[%clk 0:02:54.9]} 12. Nxc6 {[%clk
0:02:59.6]} 12... bxc6 {[%clk 0:02:52.6]} 13. c5 {[%clk 0:02:58.9]} 13... d5
{[%clk 0:02:51.3]} 14. Qa4 {[%clk 0:02:41.5]} 14... dxe4 {[%clk 0:01:55.2]} 15.
Rfd1 {[%clk 0:02:33.2]} 15... Qb7 {[%clk 0:01:49.3]} 16. Qb3 {[%clk 0:02:28]}
16... Qc7 {[%clk 0:01:45.3]} 17. fxe4 {[%clk 0:02:24.3]} 17... Ng4 {[%clk
0:01:41.9]} 18. Ne2 {[%clk 0:02:21.2]} 18... Qxh2+ {[%clk 0:01:40.7]} 19. Kf1
{[%clk 0:02:21.8]} 19... Rfd8 {[%clk 0:01:29.4]} 20. Bf4 {[%clk 0:02:21.3]}
20... Qh1+ {[%clk 0:01:23.2]} 21. Ng1 {[%clk 0:02:21.2]} 21... Be5 {[%clk
0:01:23.8]} 22. Bxe5 {[%clk 0:01:44.7]} 22... Nxe5 {[%clk 0:01:23.1]} 23. Qg3
{[%clk 0:01:44.5]} 23... Qh5 {[%clk 0:01:17.1]} 24. Nf3 {[%clk 0:01:43]} 24...
Nc4 {[%clk 0:01:12.9]} 25. Rxd8+ {[%clk 0:01:33.4]} 25... Rxd8 {[%clk
0:01:12.5]} 26. Qc7 {[%clk 0:01:34.3]} 26... Nd2+ {[%clk 0:01:03.3]} 27. Ke2
{[%clk 0:01:20.6]} 27... Rd4 {[%clk 0:00:46.3]} 28. Ke3 {[%clk 0:00:57.5]} 28...
Rxe4+ {[%clk 0:00:30.5]} 29. Kxd2 {[%clk 0:00:57.5]} 29... Qd5+ {[%clk
0:00:29.3]} 30. Kc2 {[%clk 0:00:51.5]} 30... Rc4+ {[%clk 0:00:27.8]} 31. Kb3
{[%clk 0:00:47.5]} 31... Qd3# {[%clk 0:00:27.6]} 0-1

[Event "*** Titled Tuesday Blitz"]
[Site "Chess.com"]
[Date "2020.10.20"]
[Round "6"]
[White "jamalm2"]
[Black "Colombiano07"]
[Result "0-1"]
[WhiteElo "1826"]
[BlackElo "2213"]
[TimeControl "180+1"]
[EndTime "11:07:29 PDT"]
[Termination "Colombiano07 won on time"]

1. Nf3 {[%clk 0:03:00.1]} 1... d5 {[%clk 0:02:59.8]} 2. e3 {[%clk 0:02:58.9]}
2... Bf5 {[%clk 0:02:59.4]} 3. c4 {[%clk 0:02:57.9]} 3... c6 {[%clk 0:02:58.9]}
4. b3 {[%clk 0:02:55.7]} 4... e6 {[%clk 0:02:59.1]} 5. Nc3 {[%clk 0:02:54]} 5...
Nf6 {[%clk 0:02:59.6]} 6. Bb2 {[%clk 0:02:53.5]} 6... Be7 {[%clk 0:02:59.3]} 7.
Be2 {[%clk 0:02:50.5]} 7... h6 {[%clk 0:02:58.8]} 8. O-O {[%clk 0:02:49.7]} 8...
O-O {[%clk 0:02:59.5]} 9. d4 {[%clk 0:02:48.6]} 9... Nbd7 {[%clk 0:02:58.5]} 10.
a4 {[%clk 0:02:41.6]} 10... Ne4 {[%clk 0:02:56.1]} 11. cxd5 {[%clk 0:02:34.1]}
11... exd5 {[%clk 0:02:54.7]} 12. Nxe4 {[%clk 0:02:26.9]} 12... Bxe4 {[%clk
0:02:55.6]} 13. Bd3 {[%clk 0:02:17.4]} 13... f5 {[%clk 0:02:54.3]} 14. Ne5
{[%clk 0:02:14.1]} 14... Nxe5 {[%clk 0:02:52.6]} 15. dxe5 {[%clk 0:02:10.9]}
15... Qb6 {[%clk 0:02:50.2]} 16. Bxe4 {[%clk 0:02:02.8]} 16... fxe4 {[%clk
0:02:51.1]} 17. Rb1 {[%clk 0:01:50.9]} 17... Rf5 {[%clk 0:02:50.2]} 18. Qg4
{[%clk 0:01:38.6]} 18... Raf8 {[%clk 0:02:48.4]} 19. h4 {[%clk 0:01:27]} 19...
h5 {[%clk 0:02:20.9]} 20. Qg6 {[%clk 0:01:07.4]} 20... Bxh4 {[%clk 0:01:51.8]}
21. Qe6+ {[%clk 0:01:03.8]} 21... Kh7 {[%clk 0:01:49.3]} 22. Ba3 {[%clk
0:00:54.3]} 22... R8f7 {[%clk 0:01:41.5]} 23. Bd6 {[%clk 0:00:45.7]} 23... Bxf2+
{[%clk 0:01:22.9]} 24. Kh2 {[%clk 0:00:37.8]} 24... Qxe3 {[%clk 0:01:23]} 25.
Rxf2 {[%clk 0:00:22.5]} 25... Qxf2 {[%clk 0:01:23.9]} 26. Be7 {[%clk 0:00:11.3]}
26... Qf4+ {[%clk 0:01:20.8]} 27. Kh1 {[%clk 0:00:10.2]} 27... Qxe5 {[%clk
0:01:21.7]} 28. Qxe5 {[%clk 0:00:08.1]} 28... Rxe5 {[%clk 0:01:22.6]} 29. Bd6
{[%clk 0:00:07.2]} 29... Re6 {[%clk 0:01:22.3]} 30. Bg3 {[%clk 0:00:05.7]} 30...
h4 {[%clk 0:01:20.8]} 0-1

[Event "*** Titled Tuesday Blitz"]
[Site "Chess.com"]
[Date "2020.10.20"]
[Round "6"]
[White "K_A_S_T_O_R"]
[Black "1977Ivan"]
[Result "1-0"]
[WhiteElo "2832"]
[BlackElo "2682"]
[TimeControl "180+1"]
[EndTime "11:07:31 PDT"]
[Termination "K_A_S_T_O_R won by checkmate"]

1. e4 {[%clk 0:03:00.9]} 1... c5 {[%clk 0:02:59.3]} 2. Nf3 {[%clk 0:03:00.6]}
2... Nc6 {[%clk 0:02:59.8]} 3. d4 {[%clk 0:03:00.6]} 3... cxd4 {[%clk
0:03:00.2]} 4. Nxd4 {[%clk 0:03:01.2]} 4... Nf6 {[%clk 0:03:00.4]} 5. Nc3 {[%clk
0:03:00.8]} 5... h5 {[%clk 0:03:00.8]} 6. Be2 {[%clk 0:02:34.4]} 6... g6 {[%clk
0:03:00]} 7. Nb3 {[%clk 0:02:30.4]} 7... Bg7 {[%clk 0:02:59.1]} 8. Bf4 {[%clk
0:02:28.3]} 8... d6 {[%clk 0:02:58.1]} 9. Qd2 {[%clk 0:02:27.7]} 9... Be6 {[%clk
0:02:43.2]} 10. O-O-O {[%clk 0:02:22.5]} 10... a5 {[%clk 0:02:40.7]} 11. Be3
{[%clk 0:02:05.6]} 11... Ng4 {[%clk 0:02:30.4]} 12. Bxg4 {[%clk 0:02:04.6]}
12... hxg4 {[%clk 0:02:29.8]} 13. Nd4 {[%clk 0:02:05]} 13... Qc8 {[%clk
0:02:09.2]} 14. Kb1 {[%clk 0:01:58.2]} 14... Rh5 {[%clk 0:02:07.1]} 15. Qe2
{[%clk 0:01:45.9]} 15... Kf8 {[%clk 0:02:02.4]} 16. f3 {[%clk 0:01:29.9]} 16...
gxf3 {[%clk 0:01:58.6]} 17. gxf3 {[%clk 0:01:30.8]} 17... a4 {[%clk 0:01:34.4]}
18. a3 {[%clk 0:01:30.5]} 18... Na5 {[%clk 0:01:31.8]} 19. Nxe6+ {[%clk
0:01:28]} 19... Qxe6 {[%clk 0:01:31.2]} 20. Bd4 {[%clk 0:01:28.3]} 20... Nc4
{[%clk 0:01:19.7]} 21. Nd5 {[%clk 0:01:24.4]} 21... Rc8 {[%clk 0:01:16.4]} 22.
Nf4 {[%clk 0:01:23.5]} 22... Qd7 {[%clk 0:01:12.8]} 23. Bxg7+ {[%clk 0:01:16.6]}
23... Kxg7 {[%clk 0:01:09.9]} 24. Nxh5+ {[%clk 0:01:16.6]} 24... Kf8 {[%clk
0:01:07.7]} 25. Rd4 {[%clk 0:01:04.8]} 25... b5 {[%clk 0:00:57.3]} 26. Ng3
{[%clk 0:01:01.9]} 26... Ne5 {[%clk 0:00:35.3]} 27. f4 {[%clk 0:00:59.4]} 27...
Nc6 {[%clk 0:00:35.3]} 28. Qxb5 {[%clk 0:00:47.3]} 28... Rb8 {[%clk 0:00:34.8]}
29. Qxa4 {[%clk 0:00:47.2]} 29... Qb7 {[%clk 0:00:31.7]} 30. Rb4 {[%clk
0:00:46.5]} 30... Nxb4 {[%clk 0:00:30.9]} 31. Qxb4 {[%clk 0:00:46.8]} 31... Qa7
{[%clk 0:00:31]} 32. Qc3 {[%clk 0:00:46.6]} 32... Qf2 {[%clk 0:00:28.2]} 33.
Qh8# {[%clk 0:00:46.2]} 1-0

[Event "*** Titled Tuesday Blitz"]
[Site "Chess.com"]
[Date "2020.10.20"]
[Round "6"]
[White "DinaBelenkaya"]
[Black "Piotrek1979"]
[Result "1-0"]
[WhiteElo "2290"]
[BlackElo "2401"]
[TimeControl "180+1"]
[EndTime "11:07:32 PDT"]
[Termination "DinaBelenkaya won on time"]

1. e4 {[%clk 0:02:50.9]} 1... c5 {[%clk 0:02:56]} 2. Nc3 {[%clk 0:02:47.7]} 2...
Nc6 {[%clk 0:02:56]} 3. g3 {[%clk 0:02:41.5]} 3... g6 {[%clk 0:02:56.3]} 4. Bg2
{[%clk 0:02:40.1]} 4... Bg7 {[%clk 0:02:57.2]} 5. Nge2 {[%clk 0:02:39.6]} 5...
Rb8 {[%clk 0:02:55.5]} 6. d3 {[%clk 0:02:37.9]} 6... b5 {[%clk 0:02:54.4]} 7. h4
{[%clk 0:02:37.3]} 7... b4 {[%clk 0:02:48.2]} 8. Nd5 {[%clk 0:02:36.6]} 8... e6
{[%clk 0:02:44]} 9. Ne3 {[%clk 0:02:36.5]} 9... h5 {[%clk 0:02:36.6]} 10. Nc4
{[%clk 0:02:33.5]} 10... d5 {[%clk 0:02:34.9]} 11. exd5 {[%clk 0:02:33.7]} 11...
exd5 {[%clk 0:02:35.5]} 12. Ne3 {[%clk 0:02:34.5]} 12... Nge7 {[%clk 0:02:30.1]}
13. Nf4 {[%clk 0:02:34.5]} 13... d4 {[%clk 0:02:19.1]} 14. Ned5 {[%clk 0:02:27]}
14... Bg4 {[%clk 0:02:01.6]} 15. f3 {[%clk 0:01:48.1]} 15... Bf5 {[%clk
0:01:52.4]} 16. Nxe7 {[%clk 0:01:46.4]} 16... Qxe7+ {[%clk 0:01:40.2]} 17. Kf2
{[%clk 0:01:46.3]} 17... O-O {[%clk 0:01:39.1]} 18. g4 {[%clk 0:01:43.9]} 18...
hxg4 {[%clk 0:01:13.1]} 19. fxg4 {[%clk 0:01:44.8]} 19... Bd7 {[%clk 0:01:13]}
20. Nd5 {[%clk 0:01:44.8]} 20... Qd6 {[%clk 0:01:09.7]} 21. Bf4 {[%clk
0:01:44.3]} 21... Ne5 {[%clk 0:01:04.6]} 22. h5 {[%clk 0:01:36.2]} 22... g5
{[%clk 0:00:42.8]} 23. Bg3 {[%clk 0:01:29.5]} 23... f5 {[%clk 0:00:41.3]} 24.
gxf5 {[%clk 0:01:20.9]} 24... Rxf5+ {[%clk 0:00:37.1]} 25. Kg1 {[%clk
0:01:21.6]} 25... Rbf8 {[%clk 0:00:23]} 26. Be4 {[%clk 0:01:21.2]} 26... Bc6
{[%clk 0:00:12.9]} 27. h6 {[%clk 0:01:19]} 27... Bxd5 {[%clk 0:00:12.6]} 28.
Bxf5 {[%clk 0:01:16.9]} 28... Rxf5 {[%clk 0:00:10.1]} 29. hxg7 {[%clk
0:01:16.9]} 29... Bxh1 {[%clk 0:00:02.5]} 30. Qh5 {[%clk 0:01:14.8]} 30... Nf3+
{[%clk 0:00:01.5]} 31. Kxh1 {[%clk 0:01:14.3]} 1-0

[Event "*** Titled Tuesday Blitz"]
[Site "Chess.com"]
[Date "2020.10.20"]
[Round "6"]
[White "vladgoncharov"]
[Black "MaxLeto"]
[Result "1-0"]
[WhiteElo "2504"]
[BlackElo "2340"]
[TimeControl "180+1"]
[EndTime "11:07:34 PDT"]
[Termination "vladgoncharov won on time"]

1. d4 {[%clk 0:02:57.4]} 1... Nf6 {[%clk 0:02:58.4]} 2. c4 {[%clk 0:02:57.4]}
2... g6 {[%clk 0:02:58.6]} 3. Nc3 {[%clk 0:02:55.9]} 3... Bg7 {[%clk 0:02:55.6]}
4. e4 {[%clk 0:02:55.2]} 4... d6 {[%clk 0:02:56]} 5. Be2 {[%clk 0:02:55.2]} 5...
O-O {[%clk 0:02:51.7]} 6. Nf3 {[%clk 0:02:55.6]} 6... e5 {[%clk 0:02:51.2]} 7.
O-O {[%clk 0:02:55.4]} 7... Nc6 {[%clk 0:02:51.4]} 8. d5 {[%clk 0:02:55.4]} 8...
Ne7 {[%clk 0:02:50.8]} 9. Ne1 {[%clk 0:02:55.9]} 9... Nd7 {[%clk 0:02:50.6]} 10.
Be3 {[%clk 0:02:56.4]} 10... f5 {[%clk 0:02:50.2]} 11. f3 {[%clk 0:02:57]} 11...
f4 {[%clk 0:02:45.6]} 12. Bf2 {[%clk 0:02:56.9]} 12... g5 {[%clk 0:02:38.7]} 13.
Rc1 {[%clk 0:02:56.6]} 13... Rf6 {[%clk 0:02:33.8]} 14. Nd3 {[%clk 0:02:55]}
14... Rh6 {[%clk 0:02:29.2]} 15. Be1 {[%clk 0:02:54.9]} 15... Qe8 {[%clk
0:02:27]} 16. Nf2 {[%clk 0:02:54.7]} 16... Nf6 {[%clk 0:02:06.8]} 17. b4 {[%clk
0:02:49]} 17... a5 {[%clk 0:01:53.3]} 18. a3 {[%clk 0:02:47]} 18... axb4 {[%clk
0:01:53.5]} 19. axb4 {[%clk 0:02:47.1]} 19... Qh5 {[%clk 0:01:44.8]} 20. h3
{[%clk 0:02:46.1]} 20... Ng6 {[%clk 0:01:38.9]} 21. Ng4 {[%clk 0:02:45.3]} 21...
Nh4 {[%clk 0:01:28.7]} 22. Bxh4 {[%clk 0:02:27.2]} 22... Nxg4 {[%clk 0:00:57.2]}
23. fxg4 {[%clk 0:02:22.2]} 23... Qxh4 {[%clk 0:00:57.3]} 24. Nb5 {[%clk
0:02:18.1]} 24... Ra2 {[%clk 0:00:31.6]} 25. Nxc7 {[%clk 0:02:10.2]} 25... Qg3
{[%clk 0:00:29.4]} 26. Rf3 {[%clk 0:02:09.8]} 26... Qh4 {[%clk 0:00:02.9]} 27.
Ne6 {[%clk 0:01:53.7]} 27... Bf8 {[%clk 0:00:02.4]} 28. c5 {[%clk 0:01:51.1]}
28... dxc5 {[%clk 0:00:02.9]} 29. bxc5 {[%clk 0:01:51.1]} 29... Bd7 {[%clk
0:00:02.4]} 30. Bc4 {[%clk 0:01:45.1]} 30... Ra4 {[%clk 0:00:01.9]} 31. c6
{[%clk 0:01:43.9]} 31... Rxc4 {[%clk 0:00:01.1]} 32. Rxc4 {[%clk 0:01:42.5]}
32... bxc6 {[%clk 0:00:01.5]} 33. Rc1 {[%clk 0:01:14.3]} 1-0

[Event "*** Titled Tuesday Blitz"]
[Site "Chess.com"]
[Date "2020.10.20"]
[Round "6"]
[White "thedjoker98"]
[Black "alexwinter25"]
[Result "1-0"]
[WhiteElo "2571"]
[BlackElo "2348"]
[TimeControl "180+1"]
[EndTime "11:07:35 PDT"]
[Termination "thedjoker98 won by resignation"]

1. d4 {[%clk 0:03:00.9]} 1... d5 {[%clk 0:02:59.4]} 2. c4 {[%clk 0:02:59.2]}
2... e6 {[%clk 0:02:59.9]} 3. Nc3 {[%clk 0:02:59.1]} 3... Nf6 {[%clk 0:03:00.4]}
4. cxd5 {[%clk 0:02:59.3]} 4... exd5 {[%clk 0:03:00.8]} 5. Bg5 {[%clk
0:02:59.3]} 5... Nbd7 {[%clk 0:03:00.3]} 6. e3 {[%clk 0:02:58.2]} 6... c6 {[%clk
0:03:00.9]} 7. Bd3 {[%clk 0:02:56.7]} 7... Be7 {[%clk 0:03:01.4]} 8. Qc2 {[%clk
0:02:52]} 8... O-O {[%clk 0:03:01.3]} 9. Nf3 {[%clk 0:02:50.3]} 9... Re8 {[%clk
0:03:01.7]} 10. O-O {[%clk 0:02:49.7]} 10... Nf8 {[%clk 0:03:00.9]} 11. h3
{[%clk 0:02:47.9]} 11... Ne4 {[%clk 0:03:01.1]} 12. Bf4 {[%clk 0:02:46.8]} 12...
Nxc3 {[%clk 0:02:53.2]} 13. bxc3 {[%clk 0:02:47.7]} 13... Bd6 {[%clk 0:02:52.6]}
14. Bxd6 {[%clk 0:02:46.8]} 14... Qxd6 {[%clk 0:02:52.5]} 15. c4 {[%clk
0:02:47.7]} 15... dxc4 {[%clk 0:02:30.6]} 16. Bxc4 {[%clk 0:02:46.9]} 16... Be6
{[%clk 0:02:31.1]} 17. Rab1 {[%clk 0:02:45.8]} 17... Re7 {[%clk 0:02:27.7]} 18.
Ne5 {[%clk 0:02:26.4]} 18... f6 {[%clk 0:02:17.7]} 19. Bxe6+ {[%clk 0:02:20.4]}
19... Qxe6 {[%clk 0:02:18.6]} 20. Nd3 {[%clk 0:02:19]} 20... b6 {[%clk 0:02:04]}
21. Rbc1 {[%clk 0:02:16.5]} 21... Rc8 {[%clk 0:02:00.5]} 22. Qa4 {[%clk
0:02:15.2]} 22... h5 {[%clk 0:01:56]} 23. Nf4 {[%clk 0:02:12.2]} 23... b5 {[%clk
0:01:33.7]} 24. Qa6 {[%clk 0:01:57.8]} 24... Qd7 {[%clk 0:01:29.8]} 25. Nxh5
{[%clk 0:01:54.7]} 25... Ne6 {[%clk 0:01:23.2]} 26. Rfd1 {[%clk 0:01:46.2]}
26... Kf7 {[%clk 0:01:17.2]} 27. d5 {[%clk 0:01:42.4]} 27... Ng5 {[%clk
0:00:53.7]} 28. dxc6 {[%clk 0:01:40.3]} 28... Qc7 {[%clk 0:00:45.3]} 29. Qxb5
{[%clk 0:01:35.7]} 29... Rh8 {[%clk 0:00:41.6]} 30. Nf4 {[%clk 0:01:30.2]} 30...
Ne4 {[%clk 0:00:32.3]} 31. Qc4+ {[%clk 0:01:16.6]} 31... Ke8 {[%clk 0:00:25.1]}
32. Rd7 {[%clk 0:01:16.2]} 32... Qe5 {[%clk 0:00:09.9]} 33. Rxe7+ {[%clk
0:01:11.8]} 1-0

[Event "*** Titled Tuesday Blitz"]
[Site "Chess.com"]
[Date "2020.10.20"]
[Round "6"]
[White "lelya96"]
[Black "Vyacheslav_N"]
[Result "0-1"]
[WhiteElo "2191"]
[BlackElo "2376"]
[TimeControl "180+1"]
[EndTime "11:07:40 PDT"]
[Termination "Vyacheslav_N won on time"]

1. e4 {[%clk 0:02:49.9]} 1... c5 {[%clk 0:02:57.9]} 2. Nf3 {[%clk 0:02:49]} 2...
d6 {[%clk 0:02:58.1]} 3. d4 {[%clk 0:02:48.2]} 3... cxd4 {[%clk 0:02:59]} 4.
Nxd4 {[%clk 0:02:48.8]} 4... Nf6 {[%clk 0:02:59.3]} 5. Nc3 {[%clk 0:02:49]} 5...
a6 {[%clk 0:02:59.8]} 6. Bd3 {[%clk 0:02:49]} 6... Nbd7 {[%clk 0:02:57.6]} 7.
O-O {[%clk 0:02:46.7]} 7... e6 {[%clk 0:02:53.2]} 8. f4 {[%clk 0:02:44.6]} 8...
Be7 {[%clk 0:02:48.5]} 9. Kh1 {[%clk 0:02:44.1]} 9... Qc7 {[%clk 0:02:48.2]} 10.
Qe1 {[%clk 0:02:43.4]} 10... b5 {[%clk 0:02:47.1]} 11. a3 {[%clk 0:02:42.8]}
11... Bb7 {[%clk 0:02:43.9]} 12. Bd2 {[%clk 0:02:37.5]} 12... O-O {[%clk
0:02:41]} 13. Rd1 {[%clk 0:02:35.4]} 13... d5 {[%clk 0:02:41.9]} 14. e5 {[%clk
0:02:34.7]} 14... Ne8 {[%clk 0:02:41.4]} 15. Qg3 {[%clk 0:02:27.1]} 15... g6
{[%clk 0:02:07.4]} 16. Rde1 {[%clk 0:02:10.7]} 16... Ng7 {[%clk 0:01:54.5]} 17.
Qh3 {[%clk 0:01:53.1]} 17... h5 {[%clk 0:01:27.1]} 18. Bxg6 {[%clk 0:01:32.6]}
18... fxg6 {[%clk 0:01:26.5]} 19. Nxe6 {[%clk 0:01:32.7]} 19... Nxe6 {[%clk
0:01:26.4]} 20. Qxe6+ {[%clk 0:01:32.3]} 20... Rf7 {[%clk 0:01:20]} 21. Qxg6+
{[%clk 0:01:18.6]} 21... Rg7 {[%clk 0:01:18.4]} 22. Qe6+ {[%clk 0:01:18.3]}
22... Kh8 {[%clk 0:01:15.5]} 23. f5 {[%clk 0:00:42.8]} 23... d4 {[%clk 0:00:59]}
24. Ne4 {[%clk 0:00:17.4]} 24... Qxe5 {[%clk 0:00:57.8]} 25. Qxd7 {[%clk
0:00:09.4]} 25... Bxe4 {[%clk 0:00:53.8]} 26. Rg1 {[%clk 0:00:07.5]} 26... Bd6
{[%clk 0:00:52.2]} 0-1

[Event "*** Titled Tuesday Blitz"]
[Site "Chess.com"]
[Date "2020.10.20"]
[Round "6"]
[White "1stSecond"]
[Black "fm_magua"]
[Result "1-0"]
[WhiteElo "2772"]
[BlackElo "2593"]
[TimeControl "180+1"]
[EndTime "11:07:41 PDT"]
[Termination "1stSecond won by resignation"]

1. e4 {[%clk 0:03:00.9]} 1... c5 {[%clk 0:02:56.1]} 2. Nf3 {[%clk 0:02:59.2]}
2... Nc6 {[%clk 0:02:55.9]} 3. Bb5 {[%clk 0:02:58.7]} 3... g6 {[%clk 0:02:55.9]}
4. Bxc6 {[%clk 0:02:56.8]} 4... dxc6 {[%clk 0:02:56.8]} 5. h3 {[%clk 0:02:55.3]}
5... e5 {[%clk 0:02:56.8]} 6. O-O {[%clk 0:02:53.6]} 6... f6 {[%clk 0:02:56.9]}
7. a3 {[%clk 0:02:53]} 7... Be6 {[%clk 0:02:57]} 8. d3 {[%clk 0:02:53]} 8... h5
{[%clk 0:02:57.3]} 9. Qe2 {[%clk 0:02:49.9]} 9... g5 {[%clk 0:02:57.5]} 10. b4
{[%clk 0:02:43.1]} 10... cxb4 {[%clk 0:02:57]} 11. axb4 {[%clk 0:02:43.4]} 11...
Bxb4 {[%clk 0:02:57.3]} 12. Ba3 {[%clk 0:02:42.8]} 12... Bxa3 {[%clk 0:02:57.6]}
13. Nxa3 {[%clk 0:02:43.7]} 13... Ne7 {[%clk 0:02:57.7]} 14. Rfb1 {[%clk
0:02:43.9]} 14... b6 {[%clk 0:02:57.2]} 15. Nd2 {[%clk 0:02:41.3]} 15... Ng6
{[%clk 0:02:57.1]} 16. Nac4 {[%clk 0:02:32]} 16... Nf4 {[%clk 0:02:56.9]} 17.
Qf1 {[%clk 0:02:25.1]} 17... O-O {[%clk 0:02:54.6]} 18. Ne3 {[%clk 0:02:22.2]}
18... Qd7 {[%clk 0:02:52.7]} 19. Kh2 {[%clk 0:02:21.5]} 19... f5 {[%clk
0:02:45.7]} 20. exf5 {[%clk 0:02:04.4]} 20... Bxf5 {[%clk 0:02:45.3]} 21. Ne4
{[%clk 0:02:04.9]} 21... Bxe4 {[%clk 0:02:45.2]} 22. dxe4 {[%clk 0:02:05.2]}
22... Qd4 {[%clk 0:02:41.3]} 23. Qc4+ {[%clk 0:01:43.7]} 23... Qxc4 {[%clk
0:02:35.6]} 24. Nxc4 {[%clk 0:01:44.6]} 24... Ng6 {[%clk 0:02:35.3]} 25. f3
{[%clk 0:01:41.6]} 25... Rfd8 {[%clk 0:02:33.9]} 26. Ra6 {[%clk 0:01:37.9]}
26... Rd4 {[%clk 0:02:16.1]} 27. Ne3 {[%clk 0:01:36.9]} 27... Rdd8 {[%clk
0:02:03]} 28. Rba1 {[%clk 0:01:30.7]} 28... Nf4 {[%clk 0:02:00.4]} 29. Nc4
{[%clk 0:01:26.9]} 29... Rd4 {[%clk 0:01:59]} 30. Ne3 {[%clk 0:00:56.7]} 30...
Rd2 {[%clk 0:01:54.7]} 31. Kg1 {[%clk 0:00:53.3]} 31... Re2 {[%clk 0:01:54.5]}
32. R1a3 {[%clk 0:00:51.3]} 32... Rd8 {[%clk 0:01:46.3]} 33. Rxa7 {[%clk
0:00:45]} 33... Nxg2 {[%clk 0:01:41.5]} 34. Ra8 {[%clk 0:00:45.1]} 34... Nxe3
{[%clk 0:01:38.6]} 35. Rxd8+ {[%clk 0:00:44.2]} 35... Kf7 {[%clk 0:01:39]} 36.
Ra7+ {[%clk 0:00:39.8]} 36... Ke6 {[%clk 0:01:38.6]} 37. Rg8 {[%clk 0:00:23.7]}
37... Kd6 {[%clk 0:01:37]} 38. Rxg5 {[%clk 0:00:22.8]} 38... Nxc2 {[%clk
0:01:35.7]} 39. Kf1 {[%clk 0:00:19.2]} 39... Nd4 {[%clk 0:01:31.2]} 40. Rf7
{[%clk 0:00:18.2]} 40... b5 {[%clk 0:01:25.2]} 41. Rf6+ {[%clk 0:00:17.6]} 41...
Ke7 {[%clk 0:01:24.7]} 42. Rh6 {[%clk 0:00:17.4]} 42... Rh2 {[%clk 0:01:23.7]}
43. Rg7+ {[%clk 0:00:16.9]} 43... Kf8 {[%clk 0:01:23.6]} 44. Ra7 {[%clk
0:00:17.3]} 1-0